bitfinex-derivatives/quotes_BTCF0:USTF0_20240902
["timestamp","ask_amount","ask_price","bid_price","bid_amount"]
[1725319317683,0.202389,59294.0,59293.0,0.00025297]
[1725319317883,0.202389,59294.0,59282.0,0.05411323]
[1725319317884,0.6412,59294.0,59282.0,0.05411323]
[1725319318081,0.1604,59283.0,59276.0,0.11769723]
[1725319318383,0.4812,59294.0,59276.0,0.11769723]
[1725319318384,0.067469,59289.0,59281.0,0.16]
[1725319318590,0.067474,59285.0,59282.0,0.160377]
[1725319318880,0.067474,59285.0,59283.0,0.067476]
[1725319319292,0.197474,59285.0,59283.0,0.067476]
[1725319320098,0.193474,59285.0,59283.0,0.067476]
[1725319320899,0.202474,59285.0,59283.0,0.068476]
[1725319321592,0.203474,59285.0,59283.0,0.069476]
[1725319323598,0.067475,59284.0,59283.0,0.069476]
[1725319323802,0.197475,59284.0,59283.0,0.069476]
[1725319324792,0.208475,59284.0,59283.0,0.069476]
[1725319325192,0.211475,59284.0,59283.0,0.069476]
[1725319325603,0.211475,59284.0,59283.0,0.002]
[1725319326299,0.200475,59284.0,59283.0,0.001]
[1725319326494,0.209475,59284.0,59283.0,0.002]
[1725319327205,0.142,59284.0,59283.0,0.069476]
[1725319327402,0.012,59284.0,59283.0,0.069476]
[1725319327797,0.132,59284.0,59283.0,0.069476]
[1725319330110,0.199475,59284.0,59283.0,0.069476]
[1725319330898,0.199475,59284.0,59283.0,0.002]
[1725319336808,0.359475,59284.0,59283.0,0.002]
[1725319337199,0.407875,59284.0,59283.0,0.002]
[1725319338106,0.337875,59284.0,59283.0,0.002]
[1725319339716,0.199475,59284.0,59283.0,0.002]
[1725319340908,0.199475,59284.0,59283.0,0.069476]
[1725319341807,0.132,59284.0,59283.0,0.069476]
[1725319342006,0.012,59284.0,59283.0,0.069476]
[1725319343105,0.012,59284.0,59283.0,0.14080391]
[1725319343306,0.00025297,59289.0,59288.0,0.06747]
[1725319343511,0.00025297,59289.0,59288.0,0.56897845]
[1725319344114,0.00025297,59289.0,59288.0,0.51867]
[1725319344910,0.00025297,59289.0,59288.0,0.51967]
[1725319345111,0.00025297,59289.0,59288.0,0.52067]
[1725319345926,0.00025297,59289.0,59288.0,0.43067]
[1725319347114,0.11025297,59289.0,59288.0,0.43067]
[1725319349620,0.00025297,59289.0,59288.0,0.43067]
[1725319350617,0.12025297,59289.0,59288.0,0.06987]
[1725319350824,1.74705297,59289.0,59281.0,0.05423334]
[1725319351021,1.74705297,59289.0,59278.0,0.06733091]
[1725319351022,0.13496,59279.0,59278.0,0.00025297]
[1725319351223,0.18788,59279.0,59278.0,0.00025297]
[1725319351525,0.69356,59279.0,59278.0,0.00025297]
[1725319351913,0.0491,59280.0,59278.0,0.00025297]
[1725319352117,0.0481,59280.0,59279.0,0.0004]
[1725319353322,0.1781,59280.0,59279.0,0.0004]
[1725319354523,0.245579,59280.0,59279.0,0.0004]
[1725319354722,0.247579,59280.0,59279.0,0.0004]
[1725319355023,0.117579,59280.0,59279.0,0.0004]
[1725319355619,0.200579,59280.0,59279.0,0.0004]
[1725319357419,0.085,59280.0,59279.0,0.0004]
[1725319357624,0.005,59280.0,59279.0,0.06788]
[1725319358831,0.005,59280.0,59279.0,0.42868]
[1725319359138,0.005,59280.0,59279.0,0.47778]
[1725319360926,0.055,59280.0,59279.0,0.47778]
[1725319361430,0.005,59280.0,59279.0,0.47778]
[1725319362024,0.005,59280.0,59279.0,1.65134]
[1725319362632,0.005,59280.0,59279.0,1.71841794]
[1725319364531,0.005,59280.0,59279.0,1.65134]
[1725319364735,0.005,59280.0,59279.0,0.98386]
[1725319365033,0.005,59280.0,59279.0,0.47778]
[1725319368534,0.005,59280.0,59279.0,0.54485794]
[1725319369331,0.005,59280.0,59279.0,1.71841794]
[1725319369727,0.005,59280.0,59279.0,0.61233794]
[1725319370636,0.005,59280.0,59279.0,0.54485794]
[1725319371429,0.005,59280.0,59279.0,0.18405794]
[1725319371635,0.005,59280.0,59279.0,0.54485794]
[1725319373925,0.005,59280.0,59279.0,0.61233794]
[1725319374432,0.005,59280.0,59279.0,0.54526]
[1725319378439,0.005,59280.0,59279.0,0.54485794]
[1725319378650,0.005,59280.0,59279.0,0.54526]
[1725319378947,0.005,59280.0,59279.0,0.47778]
[1725319379337,0.005,59280.0,59279.0,0.63778]
[1725319379535,0.005,59280.0,59279.0,0.58868]
[1725319379739,0.115,59280.0,59279.0,0.42868]
[1725319380944,0.115,59280.0,59279.0,0.47896275]
[1725319381348,0.115,59280.0,59279.0,0.42868]
[1725319381937,0.182479,59280.0,59279.0,0.3612]
[1725319382141,0.543279,59280.0,59279.0,0.0004]
[1725319382540,0.182479,59280.0,59279.0,0.0004]
[1725319383349,0.182479,59280.0,59279.0,0.05068275]
[1725319383666,0.182479,59280.0,59279.0,0.0004]
[1725319384361,0.182479,59280.0,59279.0,0.05068275]
[1725319386054,0.182479,59280.0,59279.0,0.0004]
[1725319386460,1.288559,59280.0,59279.0,0.05068275]
[1725319387355,1.288559,59280.0,59279.0,0.0004]
[1725319387559,0.688559,59280.0,59279.0,0.0004]
[1725319389060,0.182479,59280.0,59279.0,0.0004]
[1725319389361,0.182479,59280.0,59279.0,0.05075767]
[1725319392260,0.182479,59280.0,59279.0,0.0004]
[1725319396873,0.342479,59280.0,59279.0,0.0004]
[1725319401364,0.182479,59280.0,59279.0,0.06788]
[1725319402360,0.115,59280.0,59279.0,0.13495794]
[1725319402562,0.005,59280.0,59279.0,0.13536]
[1725319402768,0.005,59280.0,59279.0,0.68834]
[1725319403269,0.0004,59282.0,59281.0,0.067478]
[1725319403476,0.0004,59282.0,59281.0,0.227478]
[1725319403769,0.0004,59282.0,59281.0,0.295356]
[1725319404677,0.0024,59282.0,59281.0,0.296356]
[1725319404876,0.0034,59282.0,59281.0,0.296356]
[1725319406172,0.0034,59282.0,59281.0,0.23274598]
[1725319406970,0.0534,59282.0,59281.0,0.07274598]
[1725319408374,0.120877,59282.0,59281.0,0.0014]
[1725319410074,0.124848,59282.0,59281.0,0.0014]
[1725319412472,1.230928,59282.0,59281.0,0.0014]
[1725319413077,1.298405,59282.0,59281.0,0.0014]
[1725319413278,1.591728,59282.0,59281.0,0.0014]
[1725319413867,0.485648,59282.0,59281.0,0.0014]
[1725319414780,0.991728,59282.0,59281.0,0.0014]
[1725319416583,0.485648,59282.0,59281.0,0.0014]
[1725319416882,0.645648,59282.0,59281.0,0.0014]
[1725319418079,0.284848,59282.0,59281.0,0.0014]
[1725319418383,0.280877,59282.0,59281.0,0.0014]
[1725319420184,0.280877,59282.0,59281.0,0.11922651]
[1725319420578,0.280877,59282.0,59281.0,0.068878]
[1725319420983,0.120877,59282.0,59281.0,0.068878]
[1725319425293,0.280877,59282.0,59281.0,0.068878]
[1725319427285,0.0534,59282.0,59281.0,0.068878]
[1725319427604,0.0034,59282.0,59281.0,0.068878]
[1725319427981,0.0034,59282.0,59281.0,0.119219]
[1725319428182,0.0034,59282.0,59281.0,0.164919]
[1725319428384,0.0034,59282.0,59281.0,0.114578]
[1725319429090,0.0034,59282.0,59281.0,0.16487923]
[1725319430594,0.0034,59282.0,59281.0,0.114578]
[1725319432293,0.0034,59282.0,59281.0,0.068878]
[1725319432494,0.180877,59282.0,59281.0,0.0014]
[1725319432702,0.279877,59282.0,59281.0,0.0014]
[1725319434100,0.347354,59282.0,59281.0,0.0014]
[1725319434898,0.35120893,59282.0,59281.0,0.0014]
[1725319436403,1.45728893,59282.0,59281.0,0.0014]
[1725319436602,0.13496,59279.0,59278.0,0.00025297]
[1725319436808,0.77616,59279.0,59278.0,0.00025297]
[1725319442700,0.70868,59279.0,59278.0,0.00025297]
[1725319443612,0.1204,59279.0,59278.0,0.00025297]
[1725319443910,0.1204,59279.0,59278.0,0.06773497]
[1725319443911,0.2804,59279.0,59278.0,0.06773497]
[1725319448305,0.1204,59279.0,59278.0,0.06773497]
[1725319452915,0.1204,59279.0,59278.0,0.00025297]
[1725319452916,0.25536,59279.0,59278.0,0.00025297]
[1725319453107,0.25536,59279.0,59270.0,0.0039]
[1725319453108,0.06749,59271.0,59270.0,0.0039]
[1725319453411,0.06749,59271.0,59264.0,0.3647]
[1725319453412,0.34789,59271.0,59268.0,0.067492]
[1725319453715,0.0004,59269.0,59268.0,0.067492]
[1725319453915,0.1104,59269.0,59268.0,0.067492]
[1725319454307,0.1064,59269.0,59268.0,0.067492]
[1725319455206,0.1064,59269.0,59268.0,0.073492]
[1725319455512,0.1004,59269.0,59268.0,0.073492]
[1725319455702,0.167892,59269.0,59268.0,0.073492]
[1725319456107,0.167892,59269.0,59268.0,0.082492]
[1725319457113,0.167892,59269.0,59268.0,0.015]
[1725319460015,0.167892,59269.0,59259.0,0.0039]
[1725319460016,0.067499,59263.0,59259.0,0.0039]
[1725319460213,0.067509,59254.0,59252.0,0.05031971]
[1725319460412,0.06751,59253.0,59252.0,0.05033722]
[1725319460619,0.17751,59253.0,59252.0,0.05033722]
[1725319461011,0.067511,59252.0,59251.0,0.47864922]
[1725319461207,0.163911,59252.0,59251.0,0.428312]
[1725319461423,0.163511,59252.0,59251.0,0.428312]
[1725319461916,0.154511,59252.0,59251.0,0.428312]
[1725319462116,0.053512,59251.0,59247.0,0.067516]
[1725319462319,0.0004,59248.0,59247.0,0.067516]
[1725319462823,0.068511,59252.0,59251.0,0.0116]
[1725319463023,0.188511,59252.0,59251.0,0.0116]
[1725319463223,0.067514,59250.0,59247.0,0.067516]
[1725319463523,0.067515,59249.0,59247.0,0.081516]
[1725319463723,0.187515,59249.0,59247.0,0.081516]
[1725319464921,0.187515,59249.0,59247.0,0.067516]
[1725319465121,0.188515,59249.0,59247.0,0.067516]
[1725319465524,0.189515,59249.0,59247.0,0.067516]
[1725319467112,0.189515,59249.0,59245.0,0.00404273]
[1725319467113,0.067518,59246.0,59245.0,0.00404273]
[1725319467319,0.067519,59245.0,59244.0,0.16332]
[1725319467618,0.187519,59245.0,59244.0,0.16332]
[1725319467820,0.187519,59245.0,59244.0,0.16734309]
[1725319468822,0.1214,59245.0,59244.0,0.16734309]
[1725319469130,0.0014,59245.0,59244.0,0.16734309]
[1725319469521,0.0014,59245.0,59244.0,1.27370309]
[1725319470031,0.0024,59245.0,59244.0,1.39370309]
[1725319472220,0.0024,59245.0,59244.0,1.46122309]
[1725319473824,0.00025297,59259.0,59254.0,0.067509]
[1725319474022,0.00025297,59259.0,59254.0,0.16]
[1725319474233,0.00025297,59259.0,59253.0,0.3608]
[1725319474234,0.05,59258.0,59255.0,0.1408]
[1725319474625,0.05,59258.0,59255.0,0.5016]
[1725319474834,0.05,59258.0,59257.0,0.067505]
[1725319475520,0.00025297,59259.0,59258.0,0.067504]
[1725319475725,0.00025297,59259.0,59258.0,0.641248]
[1725319476028,0.00025297,59259.0,59258.0,1.241248]
[1725319476225,0.00025297,59259.0,59258.0,0.067504]
[1725319476226,0.16025297,59259.0,59258.0,0.067504]
[1725319476423,0.28025297,59259.0,59258.0,0.067504]
[1725319478429,0.28025297,59259.0,59258.0,0.069504]
[1725319479335,0.12025297,59259.0,59258.0,0.069504]
[1725319480832,0.77605897,59259.0,59258.0,0.002]
[1725319481033,0.65605897,59259.0,59258.0,0.002]
[1725319481331,0.77605897,59259.0,59258.0,0.002]
[1725319482130,0.70855597,59259.0,59258.0,0.002]
[1725319485439,0.54855597,59259.0,59258.0,0.002]
[1725319485638,0.70855597,59259.0,59258.0,0.002]
[1725319487237,0.77605897,59259.0,59258.0,0.002]
[1725319494143,0.70855597,59259.0,59249.0,0.0039]
[1725319494329,0.70855597,59259.0,59245.0,0.428319]
[1725319494330,0.067516,59248.0,59246.0,0.0039]
[1725319494646,0.187516,59248.0,59247.0,0.05039965]
[1725319495631,0.188516,59248.0,59247.0,0.05039965]
[1725319496547,0.067517,59247.0,59246.0,0.001]
[1725319496733,0.187917,59247.0,59246.0,0.001]
[1725319497131,0.187917,59247.0,59246.0,0.05138617]
[1725319497544,0.187917,59247.0,59246.0,0.05038617]
[1725319498048,0.188917,59247.0,59246.0,0.05038617]
[1725319498245,0.189917,59247.0,59246.0,0.05038617]
[1725319499945,0.189917,59247.0,59246.0,0.05039542]
[1725319500546,0.189917,59247.0,59246.0,0.11791342]
[1725319500744,0.069917,59247.0,59246.0,0.11791342]
[1725319500940,0.069917,59247.0,59246.0,0.067518]
[1725319501140,0.069917,59247.0,59246.0,0.11791053]
[1725319501347,0.0024,59247.0,59246.0,0.067518]
[1725319501548,0.0024,59247.0,59246.0,0.11791053]
[1725319501747,0.0024,59247.0,59246.0,0.067518]
[1725319502045,0.1124,59247.0,59246.0,0.067518]
[1725319503641,0.067518,59246.0,59245.0,0.3608]
[1725319503841,0.177918,59246.0,59245.0,0.3608]
[1725319504945,0.179918,59246.0,59245.0,0.3608]
[1725319506056,0.179918,59246.0,59245.0,0.41119253]
[1725319507551,0.179918,59246.0,59245.0,0.428319]
[1725319508157,0.269918,59246.0,59245.0,0.428319]
[1725319509750,0.269918,59246.0,59245.0,0.49544944]
[1725319510153,0.269918,59246.0,59245.0,0.428319]
[1725319510750,0.2024,59246.0,59245.0,0.428319]
[1725319512657,0.0924,59246.0,59245.0,0.428319]
[1725319515143,0.0024,59246.0,59245.0,0.428319]
[1725319516445,0.0024,59246.0,59245.0,0.495838]
[1725319516653,0.0024,59246.0,59245.0,1.68592185]
[1725319516850,0.0024,59246.0,59245.0,1.695598]
[1725319517053,0.0024,59246.0,59245.0,1.815598]
[1725319517254,0.0024,59246.0,59245.0,2.02829525]
[1725319517450,0.0024,59246.0,59245.0,1.89971253]
[1725319518158,0.0024,59246.0,59245.0,1.815598]
[1725319518359,0.0024,59246.0,59245.0,1.883117]
[1725319520361,0.0024,59246.0,59245.0,1.283117]
[1725319520753,0.0024,59246.0,59245.0,1.883117]
[1725319524860,0.0024,59246.0,59245.0,2.09581431]
[1725319526648,0.0004,59250.0,59249.0,0.067515]
[1725319526854,0.0004,59250.0,59249.0,0.1351921]
[1725319527161,0.0004,59250.0,59249.0,0.4959921]
[1725319527357,0.0004,59250.0,59249.0,0.6159921]
[1725319528062,0.09,59253.0,59252.0,0.067511]
[1725319528364,0.09,59253.0,59252.0,0.11836561]
[1725319528565,0.09,59253.0,59252.0,0.0004]
[1725319528763,0.27751,59253.0,59252.0,0.0004]
[1725319529463,0.27851,59253.0,59252.0,0.0004]
[1725319529970,0.27951,59253.0,59252.0,0.0004]
[1725319530568,0.34702,59253.0,59252.0,0.0004]
[1725319531163,0.34602,59253.0,59252.0,0.0004]
[1725319531355,0.34702,59253.0,59252.0,0.0004]
[1725319538665,0.33852,59253.0,59252.0,0.0004]
[1725319542161,0.43502,59253.0,59252.0,0.0004]
[1725319544969,0.42502,59253.0,59252.0,0.0004]
[1725319548574,0.43502,59253.0,59252.0,0.0004]
[1725319551860,0.122,59253.0,59252.0,0.067911]
[1725319552071,0.212,59253.0,59252.0,0.067911]
[1725319552272,0.002,59253.0,59252.0,0.067911]
[1725319552466,0.002,59253.0,59252.0,0.333611]
[1725319553564,0.002,59253.0,59252.0,0.694411]
[1725319558470,0.002,59253.0,59252.0,0.333611]
[1725319558678,0.002,59253.0,59252.0,0.694411]
[1725319560677,0.002,59253.0,59252.0,0.333611]
[1725319560873,0.002,59253.0,59252.0,0.694411]
[1725319561973,0.002,59253.0,59252.0,0.74484587]
[1725319562276,0.002,59253.0,59252.0,0.694411]
[1725319563775,0.002,59253.0,59252.0,0.81235687]
[1725319564177,0.002,59253.0,59252.0,0.761922]
[1725319567589,0.112,59253.0,59252.0,0.067911]
[1725319570181,0.112,59253.0,59252.0,0.0004]
[1725319570182,0.17951,59253.0,59252.0,0.0004]
[1725319570387,0.24702,59253.0,59252.0,0.0004]
[1725319570682,1.35334,59253.0,59252.0,0.0004]
[1725319571482,1.35733403,59253.0,59252.0,0.0004]
[1725319572279,0.75733403,59253.0,59252.0,0.0004]
[1725319572481,1.35733403,59253.0,59252.0,0.0004]
[1725319573486,1.44733403,59253.0,59252.0,0.0004]
[1725319574094,1.44733403,59253.0,59237.0,0.0039]
[1725319574095,0.067527,59238.0,59237.0,0.0039]
[1725319574282,0.09,59238.0,59233.0,0.067533]
[1725319574587,0.067932,59234.0,59230.0,0.05039687]
[1725319574793,0.0004,59231.0,59229.0,0.05039687]
[1725319575086,0.0004,59231.0,59230.0,0.067536]
[1725319576077,0.0014,59231.0,59230.0,0.067536]
[1725319576282,0.0014,59231.0,59229.0,0.00404815]
[1725319576283,0.067536,59230.0,59229.0,0.00404815]
[1725319576490,0.067936,59230.0,59228.0,0.3608]
[1725319576681,0.0004,59229.0,59228.0,0.3608]
[1725319576887,0.067936,59230.0,59228.0,0.3608]
[1725319577194,0.067936,59230.0,59229.0,0.05039687]
[1725319577502,0.067936,59230.0,59228.0,0.41509643]
[1725319577790,0.0904,59229.0,59228.0,0.4151301]
[1725319578384,0.0904,59229.0,59228.0,0.41511804]
[1725319578788,0.0904,59229.0,59228.0,0.00389956]
[1725319578987,0.0914,59229.0,59227.0,0.11795748]
[1725319579296,0.0004,59228.0,59227.0,0.11795748]
[1725319579487,0.0004,59228.0,59227.0,0.12200781]
[1725319579683,0.0004,59228.0,59227.0,0.07158933]
[1725319581097,0.0014,59228.0,59227.0,0.07158933]
[1725319581400,0.0024,59228.0,59227.0,0.07158933]
[1725319587696,0.0024,59228.0,59227.0,0.16158933]
[1725319587899,0.0004,59230.0,59229.0,0.067537]
[1725319588098,0.1104,59230.0,59229.0,0.067937]
[1725319588798,0.1104,59230.0,59229.0,0.0004]
[1725319589016,1.26232,59230.0,59220.0,0.067547]
[1725319589323,0.09,59223.0,59219.0,0.3608]
[1725319589488,0.157548,59220.0,59219.0,0.3608]
[1725319589690,0.157548,59220.0,59209.0,0.4077]
[1725319589691,0.22,59220.0,59213.0,0.067556]
[1725319589892,0.09,59214.0,59213.0,0.067556]
[1725319591201,0.3608,59218.0,59213.0,0.067556]
[1725319591399,0.09,59214.0,59213.0,0.067556]
[1725319591903,0.091,59214.0,59213.0,0.069556]
[1725319593297,0.092,59214.0,59213.0,0.069556]
[1725319593699,0.002,59214.0,59213.0,0.069556]
[1725319594101,0.002,59214.0,59213.0,1.536996]
[1725319594299,0.0039,59230.0,59224.0,0.067543]
[1725319594502,0.09,59232.0,59230.0,0.067536]
[1725319594701,0.01025322,59231.0,59230.0,0.067536]
[1725319595300,0.00025322,59231.0,59230.0,0.067536]
[1725319595806,0.00025322,59231.0,59230.0,0.067936]
[1725319596105,0.00525322,59231.0,59230.0,0.067936]
[1725319596502,0.00525322,59231.0,59230.0,0.518736]
[1725319597100,0.00525322,59231.0,59230.0,0.638736]
[1725319597297,0.067545,59222.0,59220.0,0.3608]
[1725319597500,0.09,59221.0,59220.0,0.3608]
[1725319597702,0.09,59221.0,59220.0,0.428348]
[1725319598001,0.16,59225.0,59220.0,0.428348]
[1725319598214,0.17,59225.0,59220.0,0.428348]
[1725319598897,0.17,59225.0,59220.0,0.430348]
[1725319598898,0.001,59221.0,59220.0,0.430348]
[1725319599199,0.161,59225.0,59220.0,0.069548]
[1725319599404,0.221,59225.0,59220.0,0.069548]
[1725319599596,0.221,59225.0,59220.0,0.070548]
[1725319600394,0.288542,59225.0,59220.0,0.070548]
[1725319602607,0.067543,59224.0,59220.0,0.070548]
[1725319602807,0.197543,59224.0,59220.0,0.070548]
[1725319603311,0.3608,59223.0,59220.0,0.070548]
[1725319603514,0.4608,59223.0,59220.0,0.070548]
[1725319604315,0.4608,59223.0,59220.0,0.069548]
[1725319604503,0.3608,59223.0,59221.0,0.067546]
[1725319604708,0.3608,59223.0,59222.0,0.067545]
[1725319605307,0.429344,59223.0,59222.0,0.067545]
[1725319606612,0.067546,59222.0,59220.0,0.001]
[1725319606811,0.177546,59222.0,59221.0,0.001]
[1725319607011,0.176546,59222.0,59221.0,0.001]
[1725319607510,0.175546,59222.0,59219.0,0.067549]
[1725319608219,0.176546,59222.0,59221.0,0.001]
[1725319608421,0.336546,59222.0,59221.0,0.001]
[1725319608718,0.336546,59222.0,59220.0,0.067547]
[1725319608921,0.336546,59222.0,59221.0,0.067546]
[1725319609310,0.326546,59222.0,59221.0,0.067546]
[1725319610316,0.325546,59222.0,59221.0,0.067546]
[1725319610512,0.101,59222.0,59221.0,0.067546]
[1725319610723,0.001,59222.0,59221.0,0.227546]
[1725319610914,0.001,59222.0,59221.0,0.2948231]
[1725319611118,0.001,59222.0,59221.0,0.13882007]
[1725319611317,0.001,59222.0,59221.0,0.18872007]
[1725319612941,0.001,59222.0,59221.0,0.25626607]
[1725319614141,0.001,59222.0,59221.0,0.54978897]
[1725319614737,0.001,59222.0,59221.0,0.61706607]
[1725319615045,0.001,59222.0,59221.0,0.70978897]
[1725319618748,0.001,59222.0,59221.0,0.34898897]
[1725319618952,0.001,59222.0,59221.0,1.07058897]
[1725319619942,0.001,59222.0,59221.0,0.34898897]
[1725319620144,0.001,59222.0,59221.0,1.07058897]
[1725319620946,0.001,59222.0,59221.0,1.19058897]
[1725319622551,0.001,59222.0,59221.0,1.07314297]
[1725319622744,0.161,59222.0,59221.0,0.43234297]
[1725319622945,0.271,59222.0,59221.0,0.07154297]
[1725319623252,0.271,59222.0,59221.0,0.067546]
[1725319623446,0.271,59222.0,59217.0,0.067551]
[1725319623744,0.271,59222.0,59218.0,0.067549]
[1725319623745,0.0468,59221.0,59218.0,0.067549]
[1725319623950,0.1368,59221.0,59219.0,0.067548]
[1725319624651,0.0004,59220.0,59219.0,0.067548]
[1725319626941,0.0014,59220.0,59219.0,0.067548]
[1725319627352,0.0014,59220.0,59219.0,0.27805869]
[1725319627850,0.0014,59220.0,59219.0,0.2780901]
[1725319628050,0.0024,59220.0,59219.0,0.2780901]
[1725319630150,0.0024,59220.0,59219.0,0.227548]
[1725319630349,0.0024,59220.0,59219.0,0.2780901]
[1725319631355,0.0024,59220.0,59219.0,0.1180901]
[1725319631552,0.0824,59220.0,59219.0,0.067548]
[1725319631849,0.0024,59220.0,59219.0,0.227548]
[1725319632051,0.0024,59220.0,59219.0,0.295097]
[1725319632447,0.0024,59220.0,59219.0,0.36243656]
[1725319633749,0.0024,59220.0,59219.0,1.08403656]
[1725319634553,0.0524,59220.0,59219.0,0.789148]
[1725319635848,0.0524,59220.0,59219.0,0.41136863]
[1725319636151,0.0524,59220.0,59217.0,0.05056863]
[1725319636361,0.0524,59220.0,59215.0,0.11812163]
[1725319636362,0.16,59217.0,59215.0,0.11812163]
[1725319636560,0.0488,59216.0,59215.0,0.11812163]
[1725319636760,0.1688,59216.0,59215.0,0.11812163]
[1725319637059,0.1684,59216.0,59215.0,0.067553]
[1725319637761,0.1684,59216.0,59214.0,0.05057659]
[1725319637762,0.3284,59216.0,59214.0,0.05057659]
[1725319637962,0.0485,59215.0,59213.0,0.05057659]
[1725319638159,0.0004,59214.0,59212.0,0.11813259]
[1725319638358,0.0004,59213.0,59212.0,0.11813259]
[1725319638557,0.13,59213.0,59212.0,0.11813259]
[1725319639167,0.29,59213.0,59211.0,0.05057659]
[1725319639359,0.0004,59212.0,59211.0,0.05057659]
[1725319639665,0.1204,59212.0,59210.0,0.41527681]
[1725319639869,0.0004,59211.0,59210.0,0.41527681]
[1725319640057,0.1104,59211.0,59210.0,0.41527681]
[1725319640254,0.1581,59211.0,59210.0,0.41527681]
[1725319640458,0.225658,59211.0,59210.0,0.36470022]
[1725319641251,0.226658,59211.0,59210.0,0.36470022]
[1725319641753,0.1591,59211.0,59206.0,0.05057659]
[1725319641961,0.067564,59207.0,59204.0,0.05057659]
[1725319642167,0.0004,59205.0,59204.0,0.05057659]
[1725319642360,0.1304,59205.0,59203.0,0.067567]
[1725319642667,0.0502,59204.0,59203.0,0.067567]
[1725319642966,0.1802,59204.0,59203.0,0.0715423]
[1725319643171,0.407766,59204.0,59203.0,0.0039753]
[1725319643360,0.407766,59204.0,59200.0,0.11814659]
[1725319643559,0.0004,59201.0,59200.0,0.06757]
[1725319643763,0.1304,59201.0,59200.0,0.06757]
[1725319644062,0.1304,59201.0,59200.0,0.12206817]
[1725319644564,0.1304,59201.0,59200.0,0.12199218]
[1725319645157,0.1304,59201.0,59200.0,0.07149158]
[1725319645358,0.1314,59201.0,59200.0,0.07149158]
[1725319645959,0.1314,59201.0,59200.0,0.24199218]
[1725319646161,0.1324,59201.0,59200.0,0.19149158]
[1725319648769,0.1324,59201.0,59200.0,0.07149158]
[1725319649068,0.1324,59201.0,59200.0,0.06757]
[1725319649458,0.199969,59201.0,59199.0,0.3608]
[1725319649655,0.1604,59200.0,59199.0,0.3608]
[1725319649861,0.2704,59200.0,59199.0,0.3608]
[1725319651859,0.2704,59200.0,59199.0,0.428372]
[1725319651860,0.1114,59200.0,59199.0,0.428372]
[1725319652663,0.1114,59200.0,59199.0,0.4788726]
[1725319652856,0.1124,59200.0,59199.0,1.602704]
[1725319653372,0.07015298,59200.0,59199.0,1.701704]
[1725319653865,0.07015298,59200.0,59199.0,1.76904356]
[1725319654459,0.07015298,59200.0,59199.0,0.527372]
[1725319655368,0.07015298,59200.0,59199.0,0.407372]
[1725319655970,0.23015298,59200.0,59199.0,0.407372]
[1725319656861,0.29772298,59200.0,59199.0,0.3398]
[1725319658973,0.29772298,59200.0,59196.0,0.1180503]
[1725319659265,0.0004,59197.0,59196.0,0.067575]
[1725319659464,0.4712,59197.0,59196.0,0.11805918]
[1725319659664,0.4712,59197.0,59196.0,0.11805891]
[1725319660164,0.4712,59197.0,59196.0,0.067575]
[1725319660362,0.4712,59197.0,59194.0,0.05048391]
[1725319660668,0.067578,59193.0,59191.0,0.11806391]
[1725319660868,0.0004,59192.0,59191.0,0.11806391]
[1725319661062,0.0004,59192.0,59191.0,0.06758]
[1725319661063,0.1104,59192.0,59191.0,0.06758]
[1725319662367,0.1114,59192.0,59191.0,0.06758]
[1725319662566,0.1124,59192.0,59191.0,0.06758]
[1725319663574,0.17998,59192.0,59190.0,0.05445797]
[1725319663758,0.0004,59191.0,59190.0,0.00397406]
[1725319663958,0.1204,59191.0,59188.0,0.11806691]
[1725319664361,0.1604,59189.0,59187.0,0.41533117]
[1725319664567,0.0004,59188.0,59187.0,0.3608]
[1725319664770,0.1304,59188.0,59187.0,0.3608]
[1725319665666,0.1304,59188.0,59187.0,0.428385]
[1725319667073,0.1314,59188.0,59187.0,0.428385]
[1725319667968,0.1324,59188.0,59187.0,0.428385]
[1725319671568,0.1324,59188.0,59187.0,0.4956846]
[1725319672373,0.1324,59188.0,59187.0,0.428385]
[1725319676367,0.1324,59188.0,59187.0,0.47893222]
[1725319676572,0.1324,59188.0,59187.0,0.428385]
[1725319676774,0.1324,59188.0,59187.0,0.11813269]
[1725319677174,0.1324,59188.0,59187.0,0.05054769]
[1725319677175,0.199984,59188.0,59187.0,0.05054769]
[1725319677370,0.4932,59188.0,59184.0,0.0681796]
[1725319677576,0.16,59185.0,59184.0,0.05055382]
[1725319677777,0.29,59185.0,59183.0,0.05055382]
[1725319677968,0.0004,59184.0,59183.0,0.05055382]
[1725319678169,0.1304,59184.0,59183.0,0.05055382]
[1725319678572,0.2904,59184.0,59183.0,0.06759]
[1725319679277,0.2914,59184.0,59183.0,0.06759]
[1725319679879,0.2914,59184.0,59183.0,0.11814235]
[1725319680278,0.2924,59184.0,59183.0,0.06759]
[1725319681476,0.359989,59184.0,59183.0,0.06759]
[1725319681680,0.452589,59184.0,59183.0,0.06759]
[1725319683588,0.385,59184.0,59183.0,0.06759]
[1725319686379,0.385,59184.0,59183.0,0.1348896]
[1725319687582,0.2924,59184.0,59183.0,0.1348896]
[1725319688390,0.2924,59184.0,59183.0,0.06759]
[1725319689586,0.2924,59184.0,59183.0,0.13509604]
[1725319690292,0.2924,59184.0,59183.0,0.06759]
[1725319690988,0.1324,59184.0,59183.0,0.51248548]
[1725319691285,0.1324,59184.0,59183.0,0.55711911]
[1725319691491,0.1324,59184.0,59183.0,0.67711911]
[1725319693392,0.2924,59184.0,59183.0,0.15202137]
[1725319693786,0.2924,59184.0,59183.0,0.06759]
[1725319695802,0.2924,59184.0,59182.0,0.08834851]